[Event "SS Manhem Chess Week 2019 Elo tournaments"]
[Site "Molnlycke kulturhus, Biblioteksgatan 2, Molnlycke, Sweden"]
[Date "2019.08.10"]
[Round "1.2"]
[White "Olsson, William"]
[Black "Berggren Torell, Harald"]
[Result "0-1"]
[TimeControl "90 minutes for 40 moves + 30 minutes for the rest of the game + 30 seconds per move from move one."]
[WhiteFideId "1741721"]
[BlackFideId "1714031"]
[WhiteElo "2015"]
[BlackElo "2137"]

1. d4 {[%clk 01:30:47]} {[%emt 00:00:12]} d6 {[%clk 01:21:02]} {[%emt
00:09:59]} 2. Nf3 {[%clk 01:31:07]} {[%emt 00:00:09]} g6 {[%clk 01:21:27]}
{[%emt 00:00:06]} 3. e4 {[%clk 01:31:12]} {[%emt 00:00:25]} Bg7 {[%clk
01:21:52]} {[%emt 00:00:05]} 4. Bf4 {[%clk 01:30:37]} {[%emt 00:01:04]} Nf6
{[%clk 01:21:48]} {[%emt 00:00:34]} 5. Nc3 {[%clk 01:31:02]} {[%emt 00:00:06]}
Nc6 {[%clk 01:19:49]} {[%emt 00:02:29]} 6. Qd2 {[%clk 01:31:12]} {[%emt
00:00:18]} Bg4 {[%clk 01:20:17]} {[%emt 00:00:03]} 7. Be2 {[%clk 01:30:41]}
{[%emt 00:01:01]} O-O {[%clk 01:03:36]} {[%emt 00:17:12]} 8. Be3 {[%clk
01:23:30]} {[%emt 00:07:41]} e5 {[%clk 00:57:26]} {[%emt 00:06:39]} 9. d5
{[%clk 01:22:42]} {[%emt 00:01:18]} Ne7 {[%clk 00:54:17]} {[%emt 00:03:39]} 10.
h3 {[%clk 01:16:41]} {[%emt 00:06:30]} Bd7 {[%clk 00:54:42]} {[%emt 00:00:05]}
11. g4 {[%clk 01:16:08]} {[%emt 00:01:03]} b5 {[%clk 00:35:24]} {[%emt
00:19:48]} 12. g5 {[%clk 01:06:09]} {[%emt 00:10:28]} b4 {[%clk 00:32:36]}
{[%emt 00:03:19]} 13. gxf6 {[%clk 01:06:31]} {[%emt 00:00:07]} bxc3 {[%clk
00:33:03]} {[%emt 00:00:03]} 14. Qxc3 {[%clk 01:06:53]} {[%emt 00:00:08]} Bxf6
{[%clk 00:33:27]} {[%emt 00:00:06]} 15. Nd2 {[%clk 01:07:12]} {[%emt 00:00:12]}
c6 {[%clk 00:29:58]} {[%emt 00:03:59]} 16. dxc6 {[%clk 01:02:13]} {[%emt
00:05:29]} Bxc6 {[%clk 00:30:14]} {[%emt 00:00:13]} 17. Bh6 {[%clk 01:02:31]}
{[%emt 00:00:12]} Re8 {[%clk 00:27:24]} {[%emt 00:03:20]} 18. Qf3 {[%clk
00:58:22]} {[%emt 00:04:38]} Nf5 {[%clk 00:27:04]} {[%emt 00:00:50]} 19. Be3
{[%clk 00:56:40]} {[%emt 00:02:12]} Nxe3 {[%clk 00:26:53]} {[%emt 00:00:42]} 20.
fxe3 {[%clk 00:56:10]} {[%emt 00:01:00]} Bh4+ {[%clk 00:26:40]} {[%emt
00:00:43]} 21. Kd1 {[%clk 00:56:32]} {[%emt 00:00:08]} d5 {[%clk 00:15:23]}
{[%emt 00:11:48]} 22. Rf1 {[%clk 00:53:51]} {[%emt 00:03:10]} Re7 {[%clk
00:15:48]} {[%emt 00:00:04]} 23. exd5 {[%clk 00:54:11]} {[%emt 00:00:11]} Bxd5
{[%clk 00:16:03]} {[%emt 00:00:15]} 24. e4 {[%clk 00:54:32]} {[%emt 00:00:09]}
Be6 {[%clk 00:15:57]} {[%emt 00:00:35]} 25. Bd3 {[%clk 00:53:46]} {[%emt
00:01:17]} Rb8 {[%clk 00:11:26]} {[%emt 00:05:02]} 26. Nb3 {[%clk 00:50:17]}
{[%emt 00:03:58]} Qb6 {[%clk 00:08:52]} {[%emt 00:03:04]} 27. Rb1 {[%clk
00:45:39]} {[%emt 00:05:08]} Rd7 {[%clk 00:07:47]} {[%emt 00:01:35]} 28. Ke2
{[%clk 00:45:17]} {[%emt 00:00:51]} a5 {[%clk 00:06:46]} {[%emt 00:01:32]} 29.
Nc1 {[%clk 00:44:39]} {[%emt 00:01:08]} Bg5 {[%clk 00:05:07]} {[%emt 00:02:09]}
30. b3 {[%clk 00:43:48]} {[%emt 00:01:21]} Qc5 {[%clk 00:04:11]} {[%emt
00:01:25]} 31. Rd1 {[%clk 00:42:24]} {[%emt 00:01:54]} Bh4 {[%clk 00:04:00]}
{[%emt 00:00:41]} 32. Kf1 {[%clk 00:39:42]} {[%emt 00:03:12]} Bxh3+ {[%clk
00:04:10]} {[%emt 00:00:21]} 33. Ke2 {[%clk 00:40:06]} {[%emt 00:00:06]} Bg4
{[%emt 00:00:19]} 0-1

[Event "SS Manhem Chess Week 2019 Elo tournaments"]
[Site "Molnlycke kulturhus, Biblioteksgatan 2, Molnlycke, Sweden"]
[Date "2019.08.11"]
[Round "2.6"]
[White "Jacobsson, Lennart"]
[Black "Ziegler, Nathalie"]
[Result "1-0"]
[TimeControl "90 minutes for 40 moves + 30 minutes for the rest of the game + 30 seconds per move from move one."]
[WhiteFideId "1753320"]
[BlackFideId "1715984"]
[WhiteElo "1754"]
[BlackElo "1846"]

1. e4 {[%clk 01:30:57]} {[%emt 00:00:02]} c5 {[%clk 01:30:49]} {[%emt
00:00:12]} 2. Nf3 {[%clk 01:30:41]} {[%emt 00:00:46]} d6 {[%clk 01:30:53]}
{[%emt 00:00:25]} 3. d4 {[%emt 00:00:11]} cxd4 {[%clk 01:31:19]} 4. Qxd4 {[%clk
01:31:33]} {[%emt 00:00:02]} Nc6 {[%clk 01:31:01]} {[%emt 00:00:48]} 5. Qd3
{[%clk 01:31:41]} {[%emt 00:00:21]} Nf6 {[%clk 01:28:14]} {[%emt 00:03:16]} 6.
c4 {[%clk 01:31:57]} {[%emt 00:00:16]} Bg4 {[%clk 01:20:56]} {[%emt 00:07:47]}
7. Be2 {[%clk 01:13:25]} {[%emt 00:16:17]} Rc8 {[%clk 01:16:58]} {[%emt
00:07:13]} 8. Bf4 {[%clk 01:12:27]} {[%emt 00:01:27]} Qb6 {[%clk 01:10:37]}
{[%emt 00:06:51]} 9. Nc3 {[%clk 01:06:04]} {[%emt 00:06:54]} g6 {[%clk
00:58:35]} {[%emt 00:12:32]} 10. b3 {[%clk 00:57:57]} Bg7 {[%clk 00:55:35]}
{[%emt 00:12:07]} 11. Rc1 {[%clk 00:57:26]} O-O {[%clk 00:51:25]} {[%emt
00:05:39]} 12. O-O {[%clk 00:51:50]} Qa5 {[%clk 00:41:00]} {[%emt 00:17:01]} 13.
Qd2 {[%clk 00:45:22]} Rfd8 {[%clk 00:29:03]} {[%emt 00:19:25]} 14. Rfd1 {[%clk
00:38:51]} Nh5 {[%clk 00:27:35]} {[%emt 00:08:59]} 15. Be3 {[%clk 00:35:57]} f5
{[%clk 00:20:24]} {[%emt 00:11:05]} 16. h3 {[%clk 00:24:35]} Bxf3 {[%clk
00:19:21]} {[%emt 00:13:26]} 17. Bxf3 {[%clk 00:21:52]} {[%emt 00:02:02]} f4
{[%clk 00:14:25]} 18. Nd5 {[%clk 00:21:52]} Qxd2 {[%clk 00:14:25]} {[%emt
00:07:37]} 19. Bxd2 {[%clk 00:22:16]} e5 {[%clk 00:12:04]} {[%emt 00:02:56]} 20.
Bg4 {[%clk 00:15:05]} Rb8 {[%clk 00:12:01]} {[%emt 00:08:13]} 21. Bc3 {[%emt
00:00:40]} Nf6 {[%clk 00:11:39]} {[%emt 00:00:51]} 22. Be6+ {[%clk 00:14:05]}
{[%emt 00:01:22]} Kf8 {[%clk 00:11:53]} {[%emt 00:00:16]} 23. Nxf6 {[%clk
00:10:49]} {[%emt 00:03:46]} Bxf6 {[%clk 00:12:21]} {[%emt 00:00:02]} 24. Rd3
{[%clk 00:08:52]} {[%emt 00:02:26]} h5 {[%clk 00:11:02]} {[%emt 00:01:51]} 25.
Kf1 {[%clk 00:07:38]} {[%emt 00:01:44]} g5 {[%clk 00:06:34]} {[%emt 00:04:58]}
26. Rcd1 {[%clk 00:07:47]} {[%emt 00:00:20]} Ke7 {[%clk 00:05:47]} {[%emt
00:01:18]} 27. Bf5 {[%clk 00:06:36]} {[%emt 00:01:42]} b5 {[%clk 00:03:51]}
{[%emt 00:02:26]} 28. cxb5 {[%clk 00:05:58]} {[%emt 00:01:08]} Rxb5 {[%clk
00:04:20]} {[%emt 00:00:02]} 29. Bg6 {[%clk 00:05:36]} {[%emt 00:00:52]} h4
{[%clk 00:04:32]} {[%emt 00:00:18]} 30. Bh5 {[%clk 00:05:41]} {[%emt 00:00:24]}
Nb4 {[%clk 00:04:39]} {[%emt 00:00:23]} 31. Bxb4 {[%clk 00:05:41]} {[%emt
00:00:30]} Rxb4 {[%clk 00:05:08]} {[%emt 00:00:02]} 32. Bf3 {[%clk 00:05:26]}
{[%emt 00:00:44]} Rb6 {[%clk 00:04:37]} {[%emt 00:01:01]} 33. Rc1 {[%clk
00:05:03]} {[%emt 00:00:53]} Ra6 {[%clk 00:04:14]} {[%emt 00:00:52]} 34. Rd2
{[%clk 00:04:51]} {[%emt 00:00:43]} Rd7 {[%clk 00:03:42]} {[%emt 00:01:01]} 35.
Bg4 {[%clk 00:04:00]} {[%emt 00:01:21]} Rd8 {[%clk 00:03:48]} {[%emt 00:00:23]}
36. Rc7+ {[%clk 00:03:29]} {[%emt 00:01:01]} Kf8 {[%clk 00:03:49]} {[%emt
00:00:30]} 37. Be2 {[%clk 00:01:51]} {[%emt 00:02:08]} Ra5 {[%clk 00:03:50]}
{[%emt 00:00:29]} 38. Bc4 {[%clk 00:01:50]} {[%emt 00:00:31]} Be7 {[%clk
00:04:05]} {[%emt 00:00:15]} 39. a4 {[%clk 00:01:07]} {[%emt 00:01:13]} Rb8
{[%clk 00:01:26]} {[%emt 00:03:09]} 40. Bb5 {[%clk 00:01:03]} {[%emt 00:00:34]}
a6 {[%clk 00:01:26]} {[%emt 00:00:31]} 41. Ra7 {[%clk 00:18:13]} {[%emt
00:13:19]} Bd8 {[%clk 00:07:31]} {[%emt 00:24:25]} 42. b4 {[%clk 00:16:45]}
Raxb5 {[%clk 00:05:03]} 43. axb5 {[%clk 00:16:29]} Rxb5 44. Rxd6 {[%emt
00:01:57]} Be7 {[%emt 00:01:22]} 45. Rh6 {[%clk 00:07:20]} {[%emt 00:09:34]}
Rxb4 {[%clk 00:02:03]} {[%emt 00:01:00]} 46. Rh8+ {[%clk 00:04:55]} {[%emt
00:02:54]} Rb6 {[%emt 00:02:01]} 1-0

[Event "SS Manhem Chess Week 2019 Elo tournaments"]
[Site "Molnlycke kulturhus, Biblioteksgatan 2, Molnlycke, Sweden"]
[Date "2019.08.12"]
[Round "3.2"]
[White "Bergenwall, Henric"]
[Black "Fransson, Lennart"]
[Result "0-1"]
[TimeControl "90 minutes for 40 moves + 30 minutes for the rest of the game + 30 seconds per move from move one."]
[WhiteFideId "1747924"]
[BlackFideId "1706756"]
[WhiteElo "1933"]
[BlackElo "2014"]

1. e4 {[%clk 01:30:56]} Nf6 {[%clk 01:30:52]} 2. e5 {[%clk 01:30:56]} Nd5
{[%clk 01:30:52]} 3. d4 {[%clk 01:29:50]} {[%emt 72:35:08]} d6 {[%clk
01:31:08]} {[%emt 00:00:03]} 4. Nf3 {[%clk 01:27:20]} {[%emt 00:03:01]} Bg4
{[%clk 01:31:26]} {[%emt 00:00:12]} 5. Be2 {[%clk 01:18:13]} {[%emt 00:09:37]}
e6 {[%clk 01:29:32]} {[%emt 00:02:24]} 6. O-O {[%clk 01:11:54]} {[%emt
00:06:49]} Be7 {[%clk 01:28:15]} {[%emt 00:01:47]} 7. c4 {[%clk 01:06:48]}
{[%emt 00:05:36]} Nb6 {[%clk 01:28:37]} {[%emt 00:00:08]} 8. b3 {[%clk
00:59:01]} {[%emt 00:08:16]} Nc6 {[%clk 01:21:55]} {[%emt 00:07:12]} 9. Bb2
{[%clk 00:58:21]} {[%emt 00:01:11]} O-O {[%clk 01:21:20]} {[%emt 00:01:04]} 10.
Nbd2 {[%clk 00:49:31]} {[%emt 00:09:21]} Qe8 {[%clk 01:15:34]} {[%emt
00:06:16]} 11. exd6 {[%clk 00:38:52]} {[%emt 00:11:09]} cxd6 {[%clk 01:15:51]}
{[%emt 00:00:12]} 12. Re1 {[%clk 00:37:31]} {[%emt 00:01:52]} d5 {[%clk
01:03:39]} {[%emt 00:32:08]} 13. Ne5 {[%clk 00:32:40]} {[%emt 00:05:21]} Nxe5
{[%clk 01:00:28]} {[%emt 00:03:40]} 14. dxe5 {[%clk 00:32:51]} {[%emt
00:00:19]} Bxe2 {[%clk 00:55:54]} {[%emt 00:05:04]} 15. Qxe2 {[%clk 00:31:52]}
{[%emt 00:01:30]} dxc4 {[%clk 00:54:27]} {[%emt 00:01:57]} 16. Nxc4 {[%clk
00:31:36]} {[%emt 00:00:46]} Nd5 {[%clk 00:50:54]} {[%emt 00:04:02]} 17. Ne3
{[%clk 00:25:38]} {[%emt 00:06:28]} Nxe3 {[%clk 00:40:32]} {[%emt 00:10:52]} 18.
Qxe3 {[%clk 00:25:04]} {[%emt 00:01:04]} b6 {[%clk 00:35:28]} {[%emt 00:05:34]}
19. Qe2 {[%clk 00:23:19]} {[%emt 00:02:15]} Bc5 {[%clk 00:33:37]} {[%emt
00:02:20]} 20. Rac1 {[%clk 00:22:07]} {[%emt 00:01:43]} Qe7 {[%clk 00:32:22]}
{[%emt 00:01:45]} 21. Red1 {[%clk 00:17:39]} {[%emt 00:04:59]} Rfd8 {[%clk
00:30:37]} {[%emt 00:02:14]} 22. Rxd8+ {[%clk 00:16:24]} {[%emt 00:01:45]} Rxd8
{[%clk 00:31:05]} {[%emt 00:00:02]} 23. Rd1 {[%clk 00:16:51]} {[%emt 00:00:04]}
Rd5 {[%clk 00:30:18]} {[%emt 00:01:16]} 24. Rxd5 {[%clk 00:14:07]} {[%emt
00:03:14]} exd5 {[%clk 00:30:22]} {[%emt 00:00:26]} 25. Qg4 {[%clk 00:13:37]}
{[%emt 00:01:00]} Qe6 {[%clk 00:26:54]} {[%emt 00:03:58]} 26. Qxe6 {[%clk
00:08:44]} {[%emt 00:05:23]} fxe6 {[%clk 00:27:20]} {[%emt 00:00:04]} 27. Kf1
{[%clk 00:08:43]} {[%emt 00:00:32]} Kf7 {[%clk 00:26:41]} {[%emt 00:01:08]} 28.
Ke2 {[%clk 00:07:14]} {[%emt 00:01:59]} Kg6 {[%clk 00:25:13]} {[%emt 00:01:57]}
29. f4 {[%clk 00:07:39]} {[%emt 00:00:06]} Kf5 {[%clk 00:23:31]} {[%emt
00:02:11]} 30. Kf3 {[%clk 00:08:04]} {[%emt 00:00:05]} h5 {[%clk 00:23:40]}
{[%emt 00:00:20]} 31. h3 {[%clk 00:07:49]} {[%emt 00:00:46]} h4 {[%clk
00:23:04]} {[%emt 00:01:06]} 32. Bc3 {[%clk 00:04:42]} {[%emt 00:03:38]} b5
{[%clk 00:22:12]} {[%emt 00:01:22]} 33. Be1 {[%clk 00:03:16]} {[%emt 00:01:56]}
g5 {[%clk 00:22:14]} {[%emt 00:00:27]} 34. b4 {[%clk 00:02:31]} {[%emt
00:01:16]} Bb6 {[%clk 00:22:17]} {[%emt 00:00:27]} 35. g4+ {[%clk 00:01:40]}
{[%emt 00:01:21]} hxg3 {[%clk 00:22:32]} {[%emt 00:00:15]} 36. fxg5 {[%clk
00:01:05]} {[%emt 00:01:05]} g2 {[%clk 00:20:51]} {[%emt 00:02:10]} 37. Kxg2
{[%clk 00:01:28]} {[%emt 00:00:08]} Kxg5 {[%clk 00:21:01]} {[%emt 00:00:20]} 38.
Kf3 {[%clk 00:01:17]} {[%emt 00:00:41]} Bd4 {[%clk 00:20:55]} {[%emt 00:00:36]}
39. h4+ {[%clk 00:01:16]} {[%emt 00:00:32]} Kf5 {[%clk 00:21:00]} {[%emt
00:00:24]} 40. h5 {[%clk 00:01:25]} {[%emt 00:00:21]} Bxe5 {[%clk 00:21:03]}
{[%emt 00:00:27]} 41. Bd2 {[%clk 00:01:31]} {[%emt 00:00:25]} Bf6 {[%clk
00:19:56]} {[%emt 00:01:35]} 42. h6 {[%clk 00:00:32]} {[%emt 00:01:30]} e5
{[%clk 00:18:31]} {[%emt 00:01:55]} 43. h7 {[%clk 00:28:08]} {[%emt 00:02:55]}
e4+ {[%clk 00:47:37]} {[%emt 00:01:23]} 44. Kg3 {[%clk 00:28:14]} {[%emt
00:00:24]} d4 {[%clk 00:46:57]} {[%emt 00:01:10]} 45. Bf4 {[%clk 00:22:12]}
{[%emt 00:06:32]} Bg7 {[%clk 00:41:39]} {[%emt 00:05:47]} 46. Bb8 {[%clk
00:18:55]} {[%emt 00:03:49]} a6 {[%clk 00:40:36]} {[%emt 00:01:33]} 47. Ba7
{[%clk 00:18:50]} {[%emt 00:00:34]} Be5+ {[%clk 00:40:12]} {[%emt 00:00:53]} 48.
Kh4 {[%clk 00:17:33]} {[%emt 00:01:48]} e3 {[%clk 00:40:17]} {[%emt 00:00:25]}
49. Bb8 {[%clk 00:17:50]} {[%emt 00:00:14]} Bf6+ {[%clk 00:39:11]} {[%emt
00:01:35]} 50. Kg3 {[%clk 00:18:11]} {[%emt 00:00:09]} Ke4 {[%clk 00:39:00]}
{[%emt 00:00:40]} 0-1

[Event "SS Manhem Chess Week 2019 Elo tournaments"]
[Site "Molnlycke kulturhus, Biblioteksgatan 2, Molnlycke, Sweden"]
[Date "2019.08.12"]
[Round "3.5"]
[White "Bohlin, Jan"]
[Black "Degerfeldt, Sven"]
[Result "1/2-1/2"]
[TimeControl "90 minutes for 40 moves + 30 minutes for the rest of the game + 30 seconds per move from move one."]
[WhiteFideId "1758616"]
[BlackFideId "1717430"]
[WhiteElo "1752"]
[BlackElo "1899"]

1. c4 {[%clk 01:30:44]} {[%emt 00:00:02]} c5 {[%clk 01:30:40]} {[%emt
00:00:20]} 2. g3 {[%clk 01:31:07]} {[%emt 00:00:07]} g6 {[%clk 01:31:05]}
{[%emt 00:00:05]} 3. Bg2 {[%clk 01:31:23]} {[%emt 00:00:14]} Bg7 {[%clk
01:31:33]} {[%emt 00:00:02]} 4. Nc3 {[%clk 01:31:02]} {[%emt 00:00:52]} Nc6
{[%clk 01:31:45]} {[%emt 00:00:17]} 5. Nf3 {[%clk 01:31:25]} {[%emt 00:00:07]}
d6 {[%clk 01:30:52]} {[%emt 00:01:23]} 6. O-O {[%clk 01:31:46]} {[%emt
00:00:09]} e5 {[%clk 01:31:06]} {[%emt 00:00:16]} 7. a3 {[%clk 01:31:18]}
{[%emt 00:00:59]} Nge7 {[%clk 01:27:51]} {[%emt 00:03:44]} 8. Ne1 {[%clk
01:29:14]} {[%emt 00:02:34]} O-O {[%clk 01:27:07]} {[%emt 00:01:13]} 9. Nc2
{[%clk 01:27:42]} {[%emt 00:02:04]} Be6 {[%clk 01:08:24]} {[%emt 00:19:12]} 10.
Ne3 {[%clk 01:24:33]} {[%emt 00:03:39]} Qd7 {[%clk 01:07:28]} {[%emt 00:01:26]}
11. Ned5 {[%clk 01:17:56]} {[%emt 00:07:07]} Bh3 {[%clk 01:05:21]} {[%emt
00:02:37]} 12. d3 {[%clk 01:15:47]} {[%emt 00:02:39]} Bxg2 {[%clk 01:05:32]}
{[%emt 00:00:18]} 13. Kxg2 {[%clk 01:16:12]} {[%emt 00:00:05]} f5 {[%clk
01:04:15]} {[%emt 00:01:47]} 14. e3 {[%clk 01:03:45]} {[%emt 00:12:57]} Nxd5
{[%clk 01:00:02]} {[%emt 00:04:43]} 15. cxd5 {[%clk 00:52:00]} {[%emt
00:31:24]} Ne7 {[%clk 01:00:16]} {[%emt 00:00:15]} 16. f4 {[%clk 00:42:15]}
{[%emt 00:10:15]} exf4 {[%clk 00:53:18]} {[%emt 00:07:28]} 17. gxf4 {[%clk
00:36:09]} {[%emt 00:06:36]} Bxc3 {[%clk 00:51:44]} {[%emt 00:02:04]} 18. bxc3
{[%clk 00:36:35]} {[%emt 00:00:05]} Nxd5 {[%clk 00:52:00]} {[%emt 00:00:14]} 19.
Qb3 {[%clk 00:34:19]} {[%emt 00:02:46]} Qf7 {[%clk 00:52:14]} {[%emt 00:00:16]}
20. c4 {[%clk 00:34:07]} {[%emt 00:00:42]} Nf6 {[%clk 00:52:12]} {[%emt
00:00:32]} 21. Bb2 {[%clk 00:32:58]} {[%emt 00:01:39]} b5 {[%clk 00:39:10]}
{[%emt 00:13:32]} 22. Qc3 {[%clk 00:31:22]} {[%emt 00:02:06]} Rae8 {[%clk
00:35:07]} {[%emt 00:04:32]} 23. Rae1 {[%clk 00:30:15]} {[%emt 00:01:37]} h5
{[%clk 00:35:19]} {[%emt 00:00:19]} 24. h3 {[%clk 00:29:10]} {[%emt 00:01:35]}
bxc4 {[%clk 00:35:25]} {[%emt 00:00:25]} 25. dxc4 {[%clk 00:29:09]} {[%emt
00:00:31]} Kh7 {[%clk 00:35:40]} {[%emt 00:00:15]} 26. Kh2 {[%clk 00:25:34]}
{[%emt 00:04:05]} Ne4 {[%clk 00:35:45]} {[%emt 00:00:25]} 27. Qd3 {[%clk
00:22:55]} {[%emt 00:03:09]} Qe7 {[%clk 00:28:25]} {[%emt 00:07:50]} 28. Rg1
{[%clk 00:18:48]} {[%emt 00:04:37]} Qh4 {[%clk 00:27:15]} {[%emt 00:01:40]} 29.
Qe2 {[%clk 00:13:42]} {[%emt 00:05:37]} Rg8 {[%clk 00:16:17]} {[%emt 00:11:27]}
30. Rg2 {[%clk 00:09:13]} {[%emt 00:04:59]} g5 {[%clk 00:14:32]} {[%emt
00:02:15]} 31. fxg5 {[%clk 00:07:55]} {[%emt 00:01:48]} Nxg5 {[%clk 00:13:00]}
{[%emt 00:02:02]} 32. Rg3 {[%clk 00:06:24]} {[%emt 00:02:02]} Ne4 {[%clk
00:12:29]} {[%emt 00:01:00]} 33. Rxg8 {[%clk 00:03:50]} {[%emt 00:03:04]} Rxg8
{[%clk 00:12:46]} {[%emt 00:00:14]} 34. Qf3 {[%clk 00:02:56]} {[%emt 00:01:24]}
Qg3+ {[%clk 00:08:11]} {[%emt 00:05:04]} 35. Qxg3 {[%clk 00:03:22]} {[%emt
00:00:04]} Rxg3 {[%clk 00:08:32]} {[%emt 00:00:10]} 36. Bf6 {[%clk 00:02:17]}
{[%emt 00:01:35]} Rf3 {[%clk 00:07:16]} {[%emt 00:01:46]} 37. Bh4 {[%clk
00:02:16]} {[%emt 00:00:32]} f4 {[%clk 00:06:59]} {[%emt 00:00:47]} 38. exf4
{[%clk 00:01:34]} {[%emt 00:01:12]} Rxf4 {[%clk 00:07:20]} {[%emt 00:00:08]} 39.
Bg3 {[%clk 00:00:52]} {[%emt 00:01:13]} Nxg3 {[%clk 00:07:18]} {[%emt
00:00:33]} 40. Re7+ {[%emt 00:00:16]} Kg8 {[%clk 00:05:54]} {[%emt 00:01:51]}
41. Kxg3 {[%clk 00:00:58]} {[%emt 00:00:39]} Rxc4 {[%clk 00:05:55]} {[%emt
00:00:29]} 42. Rxa7 {[%clk 00:00:55]} {[%emt 00:00:33]} h4+ {[%clk 00:06:00]}
{[%emt 00:00:24]} 43. Kf3 {[%clk 00:00:37]} {[%emt 00:00:48]} d5 {[%clk
00:06:03]} {[%emt 00:00:27]} 44. a4 {[%clk 00:25:59]} {[%emt 00:05:09]} d4
{[%clk 00:34:46]} {[%emt 00:01:47]} 45. Rc7 {[%clk 00:25:15]} {[%emt 00:01:14]}
Rc3+ {[%clk 00:33:17]} {[%emt 00:01:59]} 46. Ke2 {[%clk 00:22:51]} {[%emt
00:02:54]} c4 {[%clk 00:31:26]} {[%emt 00:02:20]} 47. a5 {[%clk 00:23:02]}
{[%emt 00:00:20]} Ra3 {[%clk 00:11:10]} {[%emt 00:20:46]} 48. a6 {[%emt
00:00:24]} 1/2-1/2

[Event "SS Manhem Chess Week 2019 Elo tournaments"]
[Site "Molnlycke kulturhus, Biblioteksgatan 2, Molnlycke, Sweden"]
[Date "2019.08.12"]
[Round "3.6"]
[White "Hattab, Hashim"]
[Black "Jacobsson, Lennart"]
[Result "1-0"]
[TimeControl "90 minutes for 40 moves + 30 minutes for the rest of the game + 30 seconds per move from move one."]
[WhiteFideId "1721798"]
[BlackFideId "1753320"]
[WhiteElo "1868"]
[BlackElo "1754"]

1. d4 {[%clk 01:30:56]} {[%emt 00:00:02]} Nf6 {[%clk 01:30:09]} {[%emt
00:02:02]} 2. c4 {[%clk 01:31:19]} {[%emt 00:00:33]} c5 {[%clk 01:30:25]}
{[%emt 00:00:15]} 3. d5 {[%clk 01:31:23]} {[%emt 00:00:26]} b5 {[%clk
01:30:53]} {[%emt 00:00:03]} 4. cxb5 {[%clk 01:31:16]} {[%emt 00:00:36]} a6
{[%clk 01:31:20]} {[%emt 00:00:04]} 5. Nc3 {[%clk 01:30:43]} {[%emt 00:01:03]}
g6 {[%clk 01:27:48]} {[%emt 00:04:02]} 6. e4 {[%clk 01:30:56]} {[%emt
00:00:17]} d6 {[%clk 01:27:49]} {[%emt 00:00:28]} 7. Nf3 {[%clk 01:29:15]}
{[%emt 00:02:11]} Bg7 {[%clk 01:28:04]} {[%emt 00:00:16]} 8. a4 {[%clk
01:28:30]} {[%emt 00:01:14]} axb5 {[%clk 01:27:30]} {[%emt 00:01:05]} 9. Bxb5+
{[%clk 01:28:42]} {[%emt 00:00:17]} Nfd7 {[%clk 01:27:04]} {[%emt 00:00:55]} 10.
O-O {[%clk 01:26:49]} {[%emt 00:02:24]} O-O {[%clk 01:27:23]} {[%emt 00:00:12]}
11. Bf4 {[%clk 01:26:53]} {[%emt 00:00:25]} Na6 {[%emt 00:04:25]} 12. Qe2
{[%clk 01:26:33]} {[%emt 00:00:43]} Nc7 {[%clk 01:23:36]} {[%emt 00:00:29]} 13.
e5 {[%clk 01:22:02]} {[%emt 00:05:00]} Nb6 {[%clk 01:00:17]} {[%emt 00:23:50]}
14. Rfd1 {[%clk 01:13:39]} {[%emt 00:08:52]} Ba6 {[%clk 00:48:27]} {[%emt
00:12:22]} 15. Bxa6 {[%clk 01:06:00]} {[%emt 00:08:08]} Nxa6 {[%clk 00:44:29]}
{[%emt 00:27:15]} 16. h4 {[%emt 00:05:08]} Nb4 {[%emt 00:00:09]} 17. b3 {[%clk
01:00:34]} {[%emt 00:03:07]} Qd7 {[%clk 00:34:05]} {[%emt 00:09:25]} 18. a5
{[%clk 00:59:18]} {[%emt 00:01:46]} Nc8 {[%clk 00:32:08]} {[%emt 00:02:27]} 19.
Qe4 {[%clk 00:58:00]} {[%emt 00:01:46]} f6 {[%clk 00:21:10]} {[%emt 00:11:29]}
20. e6 {[%clk 00:58:00]} {[%emt 00:00:28]} Qd8 {[%clk 00:20:58]} {[%emt
00:00:43]} 21. h5 {[%clk 00:53:36]} {[%emt 00:04:54]} g5 {[%clk 00:18:02]}
{[%emt 00:03:25]} 22. Bxg5 {[%clk 00:53:32]} {[%emt 00:00:36]} Qe8 {[%clk
00:13:07]} {[%emt 00:05:25]} 23. h6 {[%clk 00:51:26]} {[%emt 00:02:35]} Bh8
{[%clk 00:11:34]} {[%emt 00:02:03]} 24. Bd2 {[%clk 00:51:01]} {[%emt 00:00:55]}
f5 {[%clk 00:11:31]} {[%emt 00:00:34]} 25. Qc4 {[%clk 00:50:18]} {[%emt
00:01:12]} Qg6 {[%clk 00:09:19]} {[%emt 00:02:42]} 26. Ra4 {[%clk 00:49:45]}
{[%emt 00:01:02]} Bf6 {[%clk 00:08:06]} {[%emt 00:01:43]} 27. Ne2 {[%clk
00:48:15]} {[%emt 00:01:59]} Kh8 {[%clk 00:07:27]} {[%emt 00:01:11]} 28. g3
{[%clk 00:47:30]} {[%emt 00:01:15]} Qh5 {[%clk 00:07:22]} {[%emt 00:00:36]} 29.
Kg2 {[%clk 00:47:42]} {[%emt 00:00:16]} Na7 {[%clk 00:07:11]} {[%emt 00:00:43]}
30. Rh1 {[%clk 00:47:50]} {[%emt 00:00:21]} Qe8 {[%clk 00:07:31]} {[%emt
00:00:11]} 31. Bc3 {[%clk 00:45:15]} {[%emt 00:03:03]} Nb5 {[%clk 00:07:23]}
{[%emt 00:00:39]} 32. Bxf6+ {[%clk 00:45:23]} {[%emt 00:00:22]} Rxf6 {[%clk
00:07:44]} {[%emt 00:00:10]} 33. Ng5 {[%clk 00:44:19]} {[%emt 00:01:33]} Nc7
{[%clk 00:04:56]} {[%emt 00:03:19]} 34. Rxb4 {[%clk 00:43:41]} {[%emt
00:01:08]} cxb4 {[%clk 00:04:10]} {[%emt 00:01:17]} 35. Qxc7 {[%clk 00:43:33]}
{[%emt 00:00:37]} Rc8 {[%clk 00:03:33]} {[%emt 00:01:07]} 36. Nf7+ {[%clk
00:43:24]} {[%emt 00:00:38]} Kg8 {[%clk 00:03:56]} {[%emt 00:00:07]} 37. Nxd6
{[%clk 00:42:58]} {[%emt 00:00:57]} 1-0